fUST/lending_fUST_20240714
["ID","MTS","AMOUNT","RATE_DAILY","PERIOD"]
[332057382,1720945833510,-500.0,0.00024657,2]
[332057383,1720945833520,-500.0,0.00024657,2]
[332057384,1720945833532,-500.0,0.00024657,2]
[332057385,1720945833541,-254.80344226,0.00024657,2]
[332057386,1720945833554,-608.86151288,0.00024657,2]
[332057387,1720945833563,-500.0,0.00024657,2]
[332057388,1720945833573,-500.0,0.00024657,2]
[332057389,1720945833582,-500.0,0.00024657,2]
[332057390,1720945833591,-500.0,0.00024657,2]
[332057391,1720945833601,-500.0,0.00024657,2]
[332057392,1720945833610,-500.0,0.00024657,2]
[332057393,1720945833620,-500.0,0.00024657,2]
[332057394,1720945833630,-500.0,0.00024657,2]
[332057395,1720945833639,-380.0,0.00024658,2]
[332057396,1720945833649,-264.40996714,0.00024658,2]
[332057397,1720945833658,-187.96480681,0.000249,2]
[332057398,1720945833668,-163.8435817,0.00024931,2]
[332057399,1720945833677,-500.0,0.00024931,2]
[332057400,1720945833688,-500.0,0.00024931,2]
[332057401,1720945833698,-500.0,0.00024931,2]
[332057402,1720945833708,-151.0,0.00024931,7]
[332057403,1720945833718,-151.0,0.00024931,7]
[332057404,1720945833729,-295.226594,0.00024931,7]
[332057405,1720945833740,-151.0,0.00024931,7]
[332057406,1720945833749,-500.0,0.00024931,2]
[332057407,1720945833760,-500.0,0.00024931,2]
[332057408,1720945833770,-500.0,0.00024931,2]
[332057409,1720945833785,-500.0,0.00024931,2]
[332057410,1720945833796,-500.0,0.00024931,2]
[332057411,1720945833805,-500.0,0.00024931,2]
[332057412,1720945833814,-500.0,0.00024931,2]
[332057413,1720945833823,-500.0,0.00024931,2]
[332057414,1720945833832,-500.0,0.00024931,2]
[332057415,1720945833841,-500.0,0.00024931,2]
[332057416,1720945833851,-500.0,0.00024931,2]
[332057417,1720945833860,-500.0,0.00024931,2]
[332057418,1720945833869,-500.0,0.00024931,2]
[332057419,1720945833879,-500.0,0.00024931,2]
[332057420,1720945833888,-755.19,0.00024931,2]
[332057421,1720945833909,-500.0,0.00024931,2]
[332057422,1720945833939,-500.0,0.00024931,2]
[332057423,1720945833967,-500.0,0.00024931,2]
[332057424,1720945833992,-1044.49,0.00024931,4]
[332057425,1720945834016,-500.0,0.00024931,2]
[332057426,1720945834064,-500.0,0.00024931,2]
[332057427,1720945834118,-500.0,0.00024931,2]
[332057428,1720945834141,-500.0,0.00024931,2]
[332057429,1720945834151,-500.0,0.00024931,2]
[332057430,1720945834162,-1116.64,0.00024931,2]
[332057431,1720945834171,-500.0,0.00024931,2]
[332057432,1720945834182,-980.28,0.00024931,2]
[332057433,1720945834192,-500.0,0.00024931,2]
[332057434,1720945834202,-500.0,0.00024931,2]
[332057435,1720945834212,-500.0,0.00024931,2]
[332057436,1720945834222,-500.0,0.00024931,2]
[332057437,1720945834232,-325.93657108,0.00024931,2]
[332057438,1720945834241,-500.0,0.00024931,2]
[332057439,1720945834250,-594.74,0.00024931,2]
[332057440,1720945834260,-500.0,0.00024931,2]
[332057441,1720945834270,-500.0,0.00024931,2]
[332057442,1720945834280,-500.0,0.00024931,2]
[332057443,1720945834290,-500.0,0.00024931,2]
[332057444,1720945834300,-500.0,0.00024931,2]
[332057445,1720945834309,-500.0,0.00024931,2]
[332057446,1720945834319,-500.0,0.00024931,2]
[332057447,1720945834329,-3746.91468756,0.00024931,2]
[332057448,1720945834338,-455.44941305,0.00024931,2]
[332057449,1720945834348,-500.0,0.00024931,2]
[332057450,1720945834358,-583.3,0.00024931,2]
[332057451,1720945834368,-500.0,0.00024931,2]
[332057452,1720945834377,-500.0,0.00024931,2]
[332057453,1720945834386,-500.0,0.00024931,2]
[332057454,1720945834396,-893.2074911,0.00024931,2]
[332057455,1720945834406,-660.41,0.00024931,2]
[332057456,1720945834415,-500.0,0.00024931,2]
[332057457,1720945834425,-500.0,0.00024931,2]
[332057458,1720945834434,-500.0,0.00024931,2]
[332057459,1720945834444,-500.0,0.00024931,2]
[332057460,1720945834453,-500.0,0.00024931,2]
[332057461,1720945834463,-14571.43,0.00024931,2]
[332057462,1720945834472,-500.0,0.00024931,2]
[332057463,1720945834482,-500.0,0.00024931,2]
[332057464,1720945834491,-500.0,0.00024931,2]
[332057465,1720945834501,-500.0,0.00024931,2]
[332057466,1720945834511,-500.0,0.00024931,2]
[332057467,1720945834521,-643.09081186,0.00024931,2]
[332057468,1720945834530,-500.0,0.00024931,2]
[332057469,1720945834540,-242.36425271,0.00024931,2]
[332057470,1720945834549,-500.0,0.00024931,2]
[332057471,1720945834560,-500.0,0.00024931,2]
[332057472,1720945834569,-500.0,0.00024931,2]
[332057473,1720945834579,-500.0,0.00024931,2]
[332057474,1720945834588,-500.0,0.00024931,2]
[332057475,1720945834598,-500.0,0.00024931,2]
[332057476,1720945834609,-233.59619079,0.00024931,2]
[332057477,1720945834618,-611.64101234,0.00024931,2]
[332057478,1720945834627,-500.0,0.00024931,2]
[332057479,1720945834637,-1723.05,0.00024931,2]
[332057480,1720945834647,-500.0,0.00024931,2]
[332057481,1720945834656,-500.0,0.00024931,2]
[332057482,1720945834665,-500.0,0.00024931,2]
[332057483,1720945834675,-500.0,0.00024931,2]
[332057484,1720945834685,-500.0,0.00024931,2]
[332057485,1720945834694,-500.0,0.00024931,2]
[332057486,1720945834704,-525.50738404,0.00024931,2]
[332057487,1720945834714,-434.15501106,0.00024931,2]
[332057488,1720945834724,-151.0,0.00024942,2]
[332057489,1720945834734,-1734.76374707,0.00024988,2]
[332057490,1720945834744,-260.62534725,0.00025,2]
[332057491,1720945834753,-1853.17476112,0.00025,2]
[332057492,1720945834763,-229.27397426,0.00025047,2]
[332057493,1720945834774,-150.112233,0.000251,8]
[332057494,1720945834784,-1734.76374707,0.0002515,2]
[332057495,1720945834794,-151.0,0.00025154,2]
[332057496,1720945834804,-11037.9792937,0.00025195,3]
[332057497,1720945834813,-151.0,0.00025195,7]
[332057498,1720945834823,-150.112233,0.000252,8]
[332057499,1720945834833,-4810.3332924,0.000252,2]
[332057500,1720945834842,-2001.92285393,0.000252,7]
[332057501,1720945834852,-1425.59,0.00025205,2]
[332057502,1720945834862,-580.43608623,0.00025205,2]
[332057503,1720945834871,-500.0,0.00025205,2]
[332057504,1720945834881,-500.0,0.00025205,2]
[332057505,1720945834890,-1480.74,0.00025205,2]
[332057506,1720945834900,-500.0,0.00025205,2]
[332057507,1720945834910,-500.0,0.00025205,2]
[332057508,1720945834919,-567.42336786,0.00025205,2]
[332057509,1720945834928,-200.0,0.00025205,2]
[332057510,1720945834938,-500.0,0.00025205,2]
[332057511,1720945834947,-151.0,0.00025205,7]
[332057512,1720945834958,-500.0,0.00025205,2]
[332057513,1720945834967,-655.64,0.00025205,2]
[332057514,1720945834977,-151.0,0.00025205,7]
[332057515,1720945834987,-500.0,0.00025205,2]
[332057516,1720945834997,-151.0,0.00025205,7]
[332057517,1720945835007,-500.0,0.00025205,2]
[332057518,1720945835017,-500.0,0.00025205,2]
[332057519,1720945835027,-500.0,0.00025205,2]
[332057520,1720945835037,-511.48642617,0.00025205,2]
[332057521,1720945835046,-242.76776576,0.00025205,2]
[332057522,1720945835056,-151.0,0.00025205,7]
[332057523,1720945835066,-151.0,0.00025205,7]
[332057524,1720945835075,-500.0,0.00025205,2]
[332057525,1720945835085,-565.8,0.00025205,2]
[332057526,1720945835094,-500.0,0.00025205,2]
[332057527,1720945835104,-500.0,0.00025205,2]
[332057528,1720945835118,-500.0,0.00025205,2]
[332057529,1720945835127,-500.0,0.00025205,2]
[332057530,1720945835137,-500.0,0.00025205,2]
[332057531,1720945835146,-500.0,0.00025205,2]
[332057532,1720945835157,-956.89,0.00025205,2]
[332057533,1720945835167,-500.0,0.00025205,2]
[332057534,1720945835176,-500.0,0.00025205,2]
[332057535,1720945835186,-500.0,0.00025205,2]
[332057536,1720945835195,-500.0,0.00025205,2]
[332057537,1720945835204,-500.0,0.00025205,2]
[332057538,1720945835213,-512.06036937,0.00025205,2]
[332057539,1720945835223,-500.0,0.00025205,2]
[332057540,1720945835232,-534.03580001,0.00025205,2]
[332057541,1720945835241,-500.0,0.00025205,2]
[332057542,1720945835251,-500.0,0.00025205,2]
[332057543,1720945835262,-500.0,0.00025205,2]
[332057544,1720945835272,-500.0,0.00025205,2]
[332057545,1720945835284,-151.0,0.00025205,7]
[332057546,1720945835294,-275.16317168,0.00025205,2]
[332057547,1720945835304,-600.95,0.00025205,2]
[332057548,1720945835315,-221.9991293,0.00025205,2]
[332057549,1720945835325,-500.0,0.00025205,2]
[332057550,1720945835335,-500.0,0.00025205,2]
[332057551,1720945835345,-500.0,0.00025205,2]
[332057552,1720945835355,-500.0,0.00025205,2]
[332057553,1720945835364,-297.990503,0.00025205,7]
[332057554,1720945835374,-500.0,0.00025205,2]
[332057555,1720945835384,-297.990503,0.00025205,7]
[332057556,1720945835394,-500.0,0.00025205,2]
[332057557,1720945835403,-4145.8,0.00025205,2]
[332057558,1720945835412,-500.0,0.00025205,2]
[332057559,1720945835423,-279.55542492,0.00025205,2]
[332057560,1720945835433,-500.0,0.00025205,2]
[332057561,1720945835443,-151.0,0.00025205,7]
[332057562,1720945835452,-500.0,0.00025205,2]
[332057563,1720945835461,-500.0,0.00025205,2]
[332057564,1720945835471,-500.0,0.00025205,2]
[332057565,1720945835480,-524.22,0.00025205,2]
[332057566,1720945835490,-500.0,0.00025205,2]
[332057567,1720945835500,-500.0,0.00025205,2]
[332057568,1720945835509,-500.0,0.00025205,2]
[332057569,1720945835519,-500.0,0.00025205,2]
[332057570,1720945835529,-500.0,0.00025205,2]
[332057571,1720945835539,-500.0,0.00025205,2]
[332057572,1720945835548,-218.41697337,0.00025205,2]
[332057573,1720945835558,-500.0,0.00025205,2]
[332057574,1720945835567,-500.0,0.00025205,2]
[332057575,1720945835576,-755.19,0.00025205,2]
[332057576,1720945835585,-500.0,0.00025205,2]
[332057577,1720945835595,-500.0,0.00025205,2]
[332057578,1720945835604,-500.0,0.00025205,2]
[332057579,1720945835613,-1044.49,0.00025205,4]
[332057580,1720945835622,-500.0,0.00025205,2]
[332057581,1720945835631,-500.0,0.00025205,2]
[332057582,1720945835640,-500.0,0.00025205,2]
[332057583,1720945835649,-500.0,0.00025205,2]
[332057584,1720945835659,-500.0,0.00025205,2]
[332057585,1720945835751,-1116.64,0.00025205,2]
[332057586,1720945835760,-500.0,0.00025205,2]
[332057587,1720945835770,-980.28,0.00025205,2]
[332057588,1720945835781,-289.17612374,0.00025205,2]
[332057589,1720945835791,-500.0,0.00025205,2]
[332057590,1720945835800,-500.0,0.00025205,2]
[332057591,1720945835809,-500.0,0.00025205,2]
[332057592,1720945835819,-500.0,0.00025205,2]
[332057593,1720945835828,-594.74,0.00025205,2]
[332057594,1720945835838,-500.0,0.00025205,2]
[332057595,1720945835847,-500.0,0.00025205,2]
[332057596,1720945835856,-500.0,0.00025205,2]
[332057597,1720945835866,-500.0,0.00025205,2]
[332057598,1720945835878,-500.0,0.00025205,2]
[332057599,1720945835888,-500.0,0.00025205,2]
[332057600,1720945835897,-500.0,0.00025205,2]
[332057601,1720945835907,-500.0,0.00025205,2]
[332057602,1720945835916,-583.3,0.00025205,2]
[332057603,1720945835925,-500.0,0.00025205,2]
[332057604,1720945835934,-197.1127938,0.00025205,2]
[332057605,1720945835944,-500.0,0.00025205,2]
[332057606,1720945835953,-660.41,0.00025205,2]
[332057607,1720945835962,-500.0,0.00025205,2]
[332057608,1720945835972,-500.0,0.00025205,2]
[332057609,1720945835981,-500.0,0.00025205,2]
[332057610,1720945835991,-500.0,0.00025205,2]
[332057611,1720945836000,-14571.43,0.00025205,2]
[332057612,1720945836010,-260.12514962,0.00025205,2]
[332057613,1720945836019,-500.0,0.00025205,2]
[332057614,1720945836030,-500.0,0.00025205,2]
[332057615,1720945836039,-219.89208724,0.00025205,2]
[332057616,1720945836050,-397.53566885,0.00025205,2]
[332057617,1720945836059,-504.80255297,0.00025205,2]
[332057618,1720945836069,-500.0,0.00025205,2]
[332057619,1720945836078,-1723.05,0.00025205,2]
[332057620,1720945836087,-570.65072636,0.00025205,2]
[332057621,1720945836097,-500.0,0.00025205,2]
[332057622,1720945836106,-500.0,0.00025205,2]
[332057623,1720945836119,-500.0,0.00025205,2]
[332057624,1720945836128,-959.58137897,0.00025249,2]
[332057625,1720945836138,-189.4315508,0.0002525,2]
[332057626,1720945836147,-159.97084732,0.0002525,2]
[332057627,1720945836156,-1147.90148097,0.0002525,2]
[332057628,1720945836165,-2670.02522048,0.00025252,2]
[332057629,1720945836175,-347.78788,0.00025253,7]
[332057630,1720945836185,-347.78788,0.00025253,7]
[332057631,1720945836197,-151.0,0.00025253,7]
[332057632,1720945836208,-151.0,0.00025253,7]
[332057633,1720945836218,-151.0,0.00025253,7]
[332057634,1720945836228,-151.0,0.00025253,7]
[332057635,1720945836237,-151.0,0.00025253,7]
[332057636,1720945836247,-151.0,0.00025253,7]
[332057637,1720945836256,-333.550479,0.00025253,7]
[332057638,1720945836265,-333.550479,0.00025253,7]
[332057639,1720945836275,-151.0,0.00025366,2]
[332057640,1720945836285,-151.0,0.0002537,7]
[332057641,1720945836294,-150.112233,0.000254,9]
[332057642,1720945836303,-364.18737546,0.00025419,2]
[332057643,1720945836313,-11037.9792937,0.00025469,3]
[332057644,1720945836322,-152.579321,0.00025479,7]
[332057645,1720945836331,-1425.59,0.00025479,2]
[332057646,1720945836341,-500.0,0.00025479,2]
[332057647,1720945836350,-552.85746003,0.00025479,2]
[332057648,1720945836360,-1480.74,0.00025479,2]
[332057649,1720945836369,-500.0,0.00025479,2]
[332057650,1720945836379,-500.0,0.00025479,2]
[332057651,1720945836388,-200.0,0.00025479,2]
[332057652,1720945836397,-500.0,0.00025479,2]
[332057653,1720945836406,-151.0,0.00025479,7]
[332057654,1720945836415,-500.0,0.00025479,2]
[332057655,1720945836424,-655.64,0.00025479,2]
[332057656,1720945836433,-151.0,0.00025479,7]
[332057657,1720945836442,-221.08492536,0.00025479,2]
[332057658,1720945836451,-500.0,0.00025479,2]
[332057659,1720945836461,-500.0,0.00025479,2]
[332057660,1720945836470,-151.0,0.00025479,7]
[332057661,1720945836480,-151.0,0.00025479,7]
[332057662,1720945836489,-584.12,0.00025479,2]
[332057663,1720945836498,-448.46359988,0.00025479,2]
[332057664,1720945836507,-500.0,0.00025479,2]
[332057665,1720945836516,-500.0,0.00025479,2]
[332057666,1720945836527,-956.89,0.00025479,2]
[332057667,1720945836535,-500.0,0.00025479,2]
[332057668,1720945836547,-500.0,0.00025479,2]
[332057669,1720945836556,-500.0,0.00025479,2]
[332057670,1720945836565,-500.0,0.00025479,2]
[332057671,1720945836575,-500.0,0.00025479,2]
[332057672,1720945836583,-538.79963971,0.00025479,2]
[332057673,1720945836593,-500.0,0.00025479,2]
[332057674,1720945836602,-391.84366052,0.00025479,2]
[332057675,1720945836611,-500.0,0.00025479,2]
[332057676,1720945836621,-151.0,0.00025479,7]
[332057677,1720945836630,-600.95,0.00025479,2]
[332057678,1720945836639,-500.0,0.00025479,2]
[332057679,1720945836649,-500.0,0.00025479,2]
[332057680,1720945836658,-500.0,0.00025479,2]
[332057681,1720945836668,-500.0,0.00025479,2]
[332057682,1720945836678,-297.990503,0.00025479,7]
[332057683,1720945836688,-618.25098869,0.00025479,2]
[332057684,1720945836697,-297.990503,0.00025479,7]
[332057685,1720945836707,-500.0,0.00025479,2]
[332057686,1720945836716,-4145.8,0.00025479,2]
[332057687,1720945836725,-500.0,0.00025479,2]
[332057688,1720945836734,-500.0,0.00025479,2]
[332057689,1720945836744,-500.0,0.00025479,2]
[332057690,1720945836753,-500.0,0.00025479,2]
[332057691,1720945836762,-500.0,0.00025479,2]
[332057692,1720945836770,-453.55026647,0.00025479,2]
[332057693,1720945836785,-500.0,0.00025479,2]
[332057694,1720945836794,-500.0,0.00025479,2]
[332057695,1720945836804,-500.0,0.00025479,2]
[332057696,1720945836813,-500.0,0.00025479,2]
[332057697,1720945836822,-755.19,0.00025479,2]
[332057698,1720945836831,-500.0,0.00025479,2]
[332057699,1720945836840,-209.1071623,0.00025479,2]
[332057700,1720945836850,-500.0,0.00025479,2]
[332057701,1720945836858,-1044.49,0.00025479,4]
[332057702,1720945836868,-500.0,0.00025479,2]
[332057703,1720945836877,-500.0,0.00025479,2]
[332057704,1720945836887,-500.0,0.00025479,2]
[332057705,1720945836897,-500.0,0.00025479,2]
[332057706,1720945836906,-500.0,0.00025479,2]
[332057707,1720945836915,-1116.64,0.00025479,2]
[332057708,1720945836925,-500.0,0.00025479,2]
[332057709,1720945836935,-980.28,0.00025479,2]
[332057710,1720945836944,-500.0,0.00025479,2]
[332057711,1720945836953,-500.0,0.00025479,2]
[332057712,1720945836962,-500.0,0.00025479,2]
[332057713,1720945836972,-630.07583035,0.00025479,2]
[332057714,1720945836981,-594.74,0.00025479,2]
[332057715,1720945836991,-500.0,0.00025479,2]
[332057716,1720945837000,-500.0,0.00025479,2]
[332057717,1720945837009,-500.0,0.00025479,2]
[332057718,1720945837019,-500.0,0.00025479,2]
[332057719,1720945837031,-500.0,0.00025479,2]
[332057720,1720945837041,-474.29182579,0.00025479,2]
[332057721,1720945837051,-500.0,0.00025479,2]
[332057722,1720945837060,-583.3,0.00025479,2]
[332057723,1720945837069,-500.0,0.00025479,2]
[332057724,1720945837079,-500.0,0.00025479,2]
[332057725,1720945837088,-660.41,0.00025479,2]
[332057726,1720945837098,-500.0,0.00025479,2]
[332057727,1720945837111,-500.0,0.00025479,2]
[332057728,1720945837120,-500.0,0.00025479,2]
[332057729,1720945837129,-500.0,0.00025479,2]
[332057730,1720945837139,-14571.43,0.00025479,2]
[332057731,1720945837149,-500.0,0.00025479,2]
[332057732,1720945837160,-500.0,0.00025479,2]
[332057733,1720945837169,-500.0,0.00025479,2]
[332057734,1720945837179,-1723.05,0.00025479,2]
[332057735,1720945837191,-500.0,0.00025479,2]
[332057736,1720945837201,-500.0,0.00025479,2]
[332057737,1720945837210,-500.0,0.00025479,2]
[332057738,1720945837219,-14407.84216082,0.0002549,5]
[332057739,1720945837228,-151.0,0.0002549,7]
[332057740,1720945837238,-151.0,0.0002549,7]
[332057741,1720945837247,-151.0,0.0002549,7]
[332057742,1720945837256,-151.0,0.0002549,7]
[332057743,1720945837265,-151.0,0.0002549,7]
[332057744,1720945837276,-151.0,0.0002549,7]
[332057745,1720945837286,-55189.8964685,0.0002549,3]
[332057746,1720945837296,-410.614667,0.0002549,7]
[332057747,1720945837306,-410.614667,0.0002549,7]
[332057748,1720945837315,-827.353758,0.0002549,7]
[332057749,1720945837324,-180.90179,0.0002549,7]
[332057750,1720945837334,-827.353758,0.0002549,7]
[332057751,1720945837343,-180.90179,0.0002549,7]
[332057752,1720945837353,-5518.98964685,0.00025491,3]
[332057753,1720945837362,-312598.85326911,0.000255,2]
[332057765,1720945837462,-4884.44496906,0.000255,2]
[332057811,1720945838024,-558.61219344,0.00024241,2]
[332057813,1720945838036,-397.10503638,0.00024241,2]
[332057815,1720945838046,-500.0,0.00024657,2]
[332057817,1720945838055,-506.50899771,0.00024657,2]
[332057819,1720945838065,-501.09091161,0.00024657,2]
[332057821,1720945838075,-500.0,0.00024931,2]
[332057823,1720945838085,-154.54409492,0.00025108,2]
[332057825,1720945838095,-500.0,0.00025205,2]
[332057827,1720945838104,-500.0,0.00025479,2]
[332057829,1720945838117,-152860.48279449,0.000255,2]
[332057831,1720945838126,-151.0,0.000255,7]
[332057833,1720945838135,-151.0,0.000255,7]
[332057835,1720945838146,-151.0,0.000255,7]
[332057839,1720945838155,-151.0,0.000255,7]
[332057843,1720945838165,-151.0,0.000255,7]
[332057846,1720945838174,-297.990503,0.000255,7]
[332057849,1720945838184,-297.990503,0.000255,7]
[332057851,1720945838195,-347.78788,0.000255,7]
[332057854,1720945838204,-347.78788,0.000255,7]
[332057857,1720945838213,-151.0,0.000255,7]
[332057860,1720945838222,-151.0,0.000255,7]
[332057862,1720945838231,-151.0,0.000255,7]
[332057865,1720945838240,-151.0,0.000255,7]
[332057868,1720945838250,-151.0,0.000255,7]
[332057871,1720945838259,-220.007524,0.000255,7]
[332057872,1720945838269,-333.550479,0.000255,7]
[332057874,1720945838281,-333.550479,0.000255,7]
[332057876,1720945838290,-151.0,0.000255,7]
[332057878,1720945838300,-410.614667,0.000255,7]
[332057880,1720945838310,-410.614667,0.000255,7]
[332057882,1720945838320,-827.353758,0.000255,7]
[332057885,1720945838331,-180.90179,0.000255,7]
[332057887,1720945838340,-827.353758,0.000255,7]
[332057889,1720945838349,-49151.09527355,0.000255,2]
[332057891,1720945838359,-180.90179,0.000255,7]
[332057893,1720945838368,-207.231677,0.000255,7]
[332057894,1720945838378,-207.231677,0.000255,7]
[332057896,1720945838387,-186.575251,0.000255,7]
[332057898,1720945838398,-186.575251,0.000255,7]
[332057901,1720945838408,-217.143826,0.000255,7]
[332057903,1720945838418,-151.0,0.000255,7]
[332057905,1720945838427,-151.868163,0.000255,7]
[332057907,1720945838436,-151.0,0.000255,7]
[332057909,1720945838446,-191.814245,0.000255,7]
[332057911,1720945838455,-30000.0,0.00025501,2]
[332057913,1720945838465,-8742.83315265,0.00025501,2]
[332057915,1720945838474,-1407.0,0.00025503,2]
[332057917,1720945838485,-263.962,0.00025503,2]
[332057919,1720945838494,-503.0,0.00025503,2]
[332057921,1720945838503,-151.0,0.00025578,2]
[332057923,1720945838512,-151.0,0.00025578,2]
[332057925,1720945838522,-626.81389372,0.00025677,2]
[332057927,1720945838534,-154.59445059,0.00025692,2]
[332057929,1720945838543,-626.81389372,0.00025735,2]
[332057931,1720945838553,-153.55490359,0.00025741,2]
[332057933,1720945838563,-11037.9792937,0.00025743,3]
[332057935,1720945838573,-1425.59,0.00025753,2]
[332057937,1720945838582,-500.0,0.00025753,2]
[332057939,1720945838592,-1480.74,0.00025753,2]
[332057941,1720945838601,-500.0,0.00025753,2]
[332057943,1720945838610,-500.0,0.00025753,2]
[332057945,1720945838620,-200.0,0.00025753,2]
[332057947,1720945838629,-399.97826816,0.00025753,2]
[332057949,1720945838639,-655.64,0.00025753,2]
[332057951,1720945838647,-151.0,0.00025753,7]
[332057953,1720945838657,-500.0,0.00025753,2]
[332057955,1720945838666,-500.0,0.00025753,2]
[332057957,1720945838676,-151.0,0.00025753,7]
[332057959,1720945838685,-151.0,0.00025753,7]
[332057961,1720945838694,-500.0,0.00025753,2]
[332057963,1720945838703,-500.0,0.00025753,2]
[332057965,1720945838713,-151.0,0.00025753,7]
[332057967,1720945838723,-956.89,0.00025753,2]
[332057969,1720945838732,-500.0,0.00025753,2]
[332057971,1720945838741,-500.0,0.00025753,2]
[332057973,1720945838751,-409.3635011,0.00025753,2]
[332057975,1720945838760,-568.79541996,0.00025753,2]
[332057977,1720945838770,-500.0,0.00025753,2]
[332057979,1720945838780,-500.0,0.00025753,2]
[332057981,1720945838789,-208.949977,0.00025753,7]
[332057983,1720945838799,-600.95,0.00025753,2]
[332057985,1720945838808,-500.0,0.00025753,2]
[332057987,1720945838818,-500.0,0.00025753,2]
[332057989,1720945838827,-368.05904256,0.00025753,2]
[332057991,1720945838836,-500.0,0.00025753,2]
[332057993,1720945838845,-297.990503,0.00025753,7]
[332057995,1720945838854,-297.990503,0.00025753,7]
[332057997,1720945838863,-4145.8,0.00025753,2]
[332057999,1720945838873,-469.05860313,0.00025753,2]
[332058001,1720945838882,-500.0,0.00025753,2]
[332058003,1720945838891,-609.83564502,0.00025753,2]
[332058005,1720945838901,-500.0,0.00025753,2]
[332058007,1720945838910,-500.0,0.00025753,2]
[332058009,1720945838919,-347.78788,0.00025753,7]
[332058011,1720945838929,-500.0,0.00025753,2]
[332058013,1720945838938,-500.0,0.00025753,2]
[332058015,1720945838948,-347.78788,0.00025753,7]
[332058017,1720945838958,-755.19,0.00025753,2]
[332058019,1720945838968,-500.0,0.00025753,2]
[332058021,1720945838977,-1044.49,0.00025753,4]
[332058023,1720945838987,-500.0,0.00025753,2]
[332058025,1720945838996,-151.0,0.00025753,7]
[332058027,1720945839007,-151.0,0.00025753,7]
[332058029,1720945839017,-572.24,0.00025753,2]
[332058031,1720945839026,-500.0,0.00025753,2]
[332058033,1720945839037,-500.0,0.00025753,2]
[332058035,1720945839046,-500.0,0.00025753,2]
[332058037,1720945839055,-151.0,0.00025753,7]
[332058039,1720945839064,-1116.64,0.00025753,2]
[332058041,1720945839074,-151.0,0.00025753,7]
[332058043,1720945839083,-301.56399544,0.00025753,2]
[332058045,1720945839092,-980.28,0.00025753,2]
[332058047,1720945839101,-164.5936,0.00025753,7]
[332058049,1720945839112,-333.550479,0.00025753,7]
[332058051,1720945839123,-333.550479,0.00025753,7]
[332058053,1720945839133,-500.0,0.00025753,2]
[332058055,1720945839143,-500.0,0.00025753,2]
[332058057,1720945839153,-151.0,0.00025753,7]
[332058059,1720945839163,-500.0,0.00025753,2]
[332058061,1720945839172,-594.74,0.00025753,2]
[332058063,1720945839181,-500.0,0.00025753,2]
[332058065,1720945839193,-500.0,0.00025753,2]
[332058067,1720945839202,-500.0,0.00025753,2]
[332058070,1720945839211,-500.0,0.00025753,2]
[332058072,1720945839221,-410.614667,0.00025753,7]
[332058074,1720945839230,-410.614667,0.00025753,7]
[332058075,1720945839239,-500.0,0.00025753,2]